{"text_format":"1","workbook":"xlsx","n_sheets":1,"sheets":["Asiento"],"not_rendered":{"charts":0,"images":0,"macros":1,"external_links":0,"defined_names":1,"comments":0,"pivot_tables":0},"unopened":[],"bounds":{"document_bytes":16777216,"sheet_cells":100000,"rows_first":2000,"rows_last":500,"rows_between":2000,"halvings":0,"cell_chars":16384,"cell_head_chars":4096},"cells_cut":0,"cells_raw":0,"read":"whole","date_system":"1900"}

{"sheet":"Asiento","index":0,"n_rows":151,"n_cols":10,"rows_kept":151,"cut":false,"hidden":false,"merged":[[9,1,9,2],[10,1,10,2],[11,1,11,2],[12,1,12,2],[4,1,4,2],[5,1,5,2],[6,1,6,2],[7,1,7,2],[8,1,8,2],[13,1,13,2],[14,1,14,2],[15,1,15,2],[16,1,16,2],[24,1,24,2]]}
[]
[null,"Kon pa kalkula asiento abase di voto-nan risibí"]
[]
[null,"Partido(nan)",null,"Voto"]
[1,"MFK"]
[2,"MKP"]
[3,"UKH"]
[4,"MAN"]
[5,"KdNT"]
[6,"PAIS"]
[7,"MP"]
[8,"PAS"]
[9,"DP"]
[10,"PAR"]
[11,"Pro Kòrsou"]
[12,"PS"]
[13,"PNP"]
[]
[]
[null,"Total kandidat di voto:",null,{"$f":"SUM(D5:D17)","v":0}]
[null,"Pa ser reparti entre asientonan:",null,21]
[null,"E Kiesdeler ta:",null,{"$f":"ROUNDDOWN(D20/D21,1)","v":0}]
[]
[]
[null,"Repartishon di asiento sin restzetel-nan",null,null,null,"Asiento"]
[null,{"$f":"B5","v":"MFK"},{"$f":"D5","v":0},{"$f":"CONCATENATE(\"/ \",$D$22)","v":"/ 0"},{"$f":"IFERROR(D5/$D$22,0)","v":0},{"$f":"ROUNDDOWN(E26,0)","v":0}]
[null,{"$f":"B6","v":"MKP"},{"$f":"D6","v":0},{"$f":"CONCATENATE(\"/ \",$D$22)","v":"/ 0"},{"$f":"IFERROR(D6/$D$22,0)","v":0},{"$f":"ROUNDDOWN(E27,0)","v":0}]
[null,"UKH",0,"/ 0",0,0]
[null,"MAN",0,"/ 0",0,0]
[null,"KdNT",0,"/ 0",0,0]
[null,"PAIS",0,"/ 0",0,0]
[null,"MP",0,"/ 0",0,0]
[null,"PAS",0,"/ 0",0,0]
[null,"DP",0,"/ 0",0,{"$f":"ROUNDDOWN(E34,0)","v":0}]
[null,"PAR",0,"/ 0",0,{"$f":"ROUNDDOWN(E35,0)","v":0}]
[null,"Pro Kòrsou",0,"/ 0",0,{"$f":"ROUNDDOWN(E36,0)","v":0}]
[null,"PS",0,"/ 0",0,{"$f":"ROUNDDOWN(E37,0)","v":0}]
[null,"PNP",0,"/ 0",0,{"$f":"ROUNDDOWN(E38,0)","v":0}]
[]
[null,null,null,null,"Total",{"$f":"SUM(F26:F38)","v":0}]
[null,null,null,null,"Sobra",{"$f":"21-F40","v":21},"Asiento restante pa reparti"]
[]
[]
[null,"Totalidad"]
[null,"Partido","Total Voto","Asiento","Restzetel","Final"]
[null,null,null,0,null,0]
[null,null,null,null,null,0]
[]
[null,"Restzetel 1"]
[null,"Partido","Total","Asiento",null,null,null,null,"Restzetel Ronde #1"]
[null,null,null,null,null,null,null,null,null,1]
[]
[]
[null,"Restzetel 2"]
[null,"Partido","Total","Asiento",null,null,null,null,"Restzetel Ronde #2"]
[null,null,null,null,null,null,null,null,null,1]
[]
[]
[null,"Restzetel 3"]
[null,"Partido","Total","Asiento",null,null,null,null,"Restzetel Ronde #3"]
[null,null,null,null,null,null,null,null,null,1]
[]
[]
[null,"Restzetel 4"]
[null,"Partido","Total","Asiento",null,null,null,null,"Restzetel Ronde #4"]
[null,null,null,null,null,null,null,null,null,1]
[]
[]
[null,"Restzetel 5"]
[null,"Partido","Total","Asiento",null,null,null,null,"Restzetel Ronde #5"]
[null,null,null,null,null,null,null,null,null,1]
[]
[]
[null,"Restzetel 6"]
[null,"Partido","Total","Asiento",null,null,null,null,"Restzetel Ronde #6"]
[null,null,null,null,null,null,null,null,null,1]
[]
[]
[null,"Restzetel 7"]
[null,"Partido","Total","Asiento",null,null,null,null,"Restzetel Ronde #7"]
[null,null,null,null,null,null,null,null,null,1]
[]
[]
[null,"Restzetel 8"]
[null,"Partido","Total","Asiento",null,null,null,null,"Restzetel Ronde #8"]
[null,null,null,null,null,null,null,null,null,1]
[]
[]
[null,"Restzetel 9"]
[null,"Partido","Total","Asiento",null,null,null,null,"Restzetel Ronde #9"]
[null,null,null,null,null,null,null,null,null,1]
[]
[]
[null,"Restzetel 10"]
[null,"Partido","Total","Asiento",null,null,null,null,"Restzetel Ronde #10"]
[null,null,null,null,null,null,null,null,null,1]
[]
[]
[null,"Restzetel 11"]
[null,"Partido","Total","Asiento",null,null,null,null,"Restzetel Ronde #11"]
[null,null,null,null,null,null,null,null,null,1]
[]
[]
[null,"Restzetel 12"]
[null,"Partido","Total","Asiento",null,null,null,null,"Restzetel Ronde #12"]
[null,null,null,null,null,null,null,null,null,1]
[]
[]
[null,"Restzetel 13"]
[null,"Partido","Total","Asiento",null,null,null,null,"Restzetel Ronde #13"]
[null,null,null,null,null,null,null,null,null,1]
[]
[]
[null,"Restzetel 14"]
[null,"Partido","Total","Asiento",null,null,null,null,"Restzetel Ronde #14"]
[null,null,null,null,null,null,null,null,null,1]
[]
[]
[null,"Restzetel 15"]
[null,"Partido","Total","Asiento",null,null,null,null,"Restzetel Ronde #15"]
[null,null,null,null,null,null,null,null,null,1]
[]
[]
[null,"Restzetel 16"]
[null,"Partido","Total","Asiento",null,null,null,null,"Restzetel Ronde #16"]
[null,null,null,null,null,null,null,null,null,1]
[]
[]
[null,"Restzetel 17"]
[null,"Partido","Total","Asiento",null,null,null,null,"Restzetel Ronde #17"]
[null,null,null,null,null,null,null,null,null,1]
[]
[]
[null,"Restzetel 18"]
[null,"Partido","Total","Asiento",null,null,null,null,"Restzetel Ronde #18"]
[null,null,null,null,null,null,null,null,null,1]
[]
[]
[null,"Restzetel 19"]
[null,"Partido","Total","Asiento",null,null,null,null,"Restzetel Ronde #19"]
[null,null,null,null,null,null,null,null,null,1]
[]
[]
[null,"Restzetel 20"]
[null,"Partido","Total","Asiento",null,null,null,null,"Restzetel Ronde #20"]
[null,null,null,null,null,null,null,null,null,1]
[]
[]
[null,"Restzetel 21"]
[null,"Partido","Total","Asiento",null,null,null,null,"Restzetel Ronde #21"]
[null,null,null,null,null,null,null,null,null,1]